Cogmind - Beta 16 @@@ ROGUE MODE // 2025.10.27 @ 22:40:09 Player: shapeshifter Result: Destroyed by S-43 Plague with Heavy Machine Gun Performance ------------- Evolutions (7) 3500 Regions Visited (24) 4800 Robots Destroyed (365) 1825 Value Destroyed (17971) 17971 Prototype IDs (41) 820 Alien Tech Used (0) 0 Bonus (9459) 9459 TOTAL SCORE: 38375 Bonus ------- High Alert Combat Kills 3786 Follower Combat Kills 1476 Entered Garrisons 1000 Used RIF Installer 3000 Aligned with FarCom 300 Friendly Fire -103 Cogmind --------- Core Integrity 0/1300 Matter 300/300 Energy 97/100 System Corruption 24% Temperature Cool (0) Movement Core (50) Location -3/Research Parts ------- > --- POWER (3) -------- (None) > --- PROPULSION (6) --- (None) > --- UTILITY (8) ------ Advanced Signal Interpreter Advanced Targeting Computer Improved Target Analyzer Advanced Corruption Screen > --- WEAPON (4) ------- Lance > --- INVENTORY (5) ---- Relay Coupler [NC] (36) Relay Coupler [Grunt] (32) Hacking Drone Bay (1/1) Nova Cannon Peak State ------------ > --- POWER ------------ Improved Deuterium Engine Light Antimatter Reactor Particle Reactor > --- PROPULSION ------- Wheel Compact Wheel Cooled Gravmag System Improved Antigrav System Improved Antigrav System Improved Antigrav System > --- UTILITY ---------- Advanced Cooling System Advanced Coolant Injector High-capacity Storage Unit Advanced Signal Interpreter Seismic Detector Advanced Targeting Computer Improved Target Analyzer Advanced Dynamic Insulation System > --- WEAPON ----------- Gamma Rifle Gamma Rifle Phase Gun Quantum Rifle > --- INVENTORY -------- Antimatter Reactor Micro Antimatter Reactor Advanced Coolant Injector Medium Storage Unit Energy Well Structural Scanner Improved Armor Integrity Analyzer Relay Coupler [NC] Relay Coupler [Grunt] High-powered Tractor Beam Improved Trap Extractor Hacking Drone Bay Gamma Rifle Nova Cannon Hypervelocity Railgun Rocket Array Advanced Remote Datajack [Rating: 125] Favorites ----------- Power Micro Nuclear Core Engine Reinforced Deuterium Engine Power Core Micro Nuclear Core Reactor Light Antimatter Reactor Propulsion Armored Huge Wheel Treads Improved Heavy Treads Leg Carbon-fiber Leg Wheel Armored Huge Wheel Hover Unit Aerolev Unit Utility Advanced Targeting Computer Device Advanced Cooling System Storage High-capacity Storage Unit Processor Advanced Targeting Computer Hackware Relay Coupler [Sentry] Protection Improved Medium Armor Plating Weapon Hypervelocity Mass Driver Energy Gun Medium Laser Energy Cannon Matter Neutralizer Ballistic Gun Railgun Ballistic Cannon Hypervelocity Mass Driver Launcher Rocket Array Special Weapon Improved Remote Datajack Impact Weapon Powered Hammer Piercing Weapon Lance Special Melee Weapon Improved Datajack Build | -11 -10 -10 -10 -9 -8 -8 -8 -8 -7 -7 -7 -7 -7 -7 -6 -6 -5 -5 -5 -5 -4 -4 -4 -3 ------- Run | Yrd Mat Min Exi Min Mat Gar Mat Gar Fac Gar Fac Low Low Zio Pro Fac Fac Gar Fac Gar Fac Was Fac Res Slots Evolved 14 | . . . . . 4 . . . 2 . . . . . . 2 2 . . . 2 . . 2 Power 2 | . . . . . . . . . 1 . . . . . . . . . . . . . . 1 Propulsion 4 | . . . . . . . . . . . . . . . . 2 1 . . . 1 . . . Utility 6 | . . . . . 4 . . . 1 . . . . . . . . . . . 1 . . . Weapon 2 | . . . . . . . . . . . . . . . . . 1 . . . . . . 1 Parts Attached 274 | 8 15 1 1 . 21 5 3 9 9 22 9 5 6 1 3 20 13 38 2 13 15 8 5 42 Power 36 | 1 2 . . . 1 1 . 2 1 4 3 1 1 . 1 1 2 5 . 1 1 2 . 6 Engine 10 | 1 1 . . . . . . . . 1 1 . 1 . . . . 4 . . . . . 1 Core 17 | . 1 . . . 1 1 . 2 1 3 2 . . . 1 1 2 . . 1 . . . 1 Reactor 9 | . . . . . . . . . . . . 1 . . . . . 1 . . 1 2 . 4 Propulsion 59 | 2 3 . . . 3 . . 1 . 1 . 1 . . . 4 6 14 . 2 2 5 . 15 Treads 23 | 2 2 . . . . . . . . . . . . . . 1 3 4 . 2 2 5 . 2 Leg 11 | . . . . . . . . . . . . . . . . 1 . 10 . . . . . . Wheel 11 | . 1 . . . 3 . . 1 . 1 . 1 . . . . . . . . . . . 4 Hover 14 | . . . . . . . . . . . . . . . . 2 3 . . . . . . 9 Flight . | . . . . . . . . . . . . . . . . . . . . . . . . . Utility 110 | 3 4 . . . 10 3 2 4 5 9 3 1 4 1 2 10 2 14 1 8 8 1 2 13 Device 48 | 2 1 . . . 3 1 . . 3 1 2 . 2 . 2 5 2 7 1 4 4 1 . 7 Storage 14 | 1 2 . . . 2 . . 1 . . . . . . . 2 . 2 . 1 1 . . 2 Processor 16 | . . . . . 3 . 1 . . 1 1 1 . . . 2 . 1 . 1 2 . 1 2 Hackware 8 | . 1 . . . . . . . 1 3 . . 1 . . . . 2 . . . . . . Protection 24 | . . . . . 2 2 1 3 1 4 . . 1 1 . 1 . 2 . 2 1 . 1 2 Artifact . | . . . . . . . . . . . . . . . . . . . . . . . . . Weapon 69 | 2 6 1 1 . 7 1 1 2 3 8 3 2 1 . . 5 3 5 1 2 4 . 3 8 Energy Gun 12 | 2 1 . . . 2 . . . . . . . . . . . . . . . . . 1 6 Energy Cannon 11 | . . . . . 1 . 1 . . . . 1 . . . 1 . 2 . 2 . . 2 1 Ballistic Gun 18 | . 4 1 1 . . . . . . 4 . . . . . 4 1 . . . 3 . . . Ballistic Cannon 17 | . . . . . 3 1 . 2 3 2 1 1 1 . . . . 3 . . . . . . Launcher 3 | . 1 . . . 1 . . . . . 1 . . . . . . . . . . . . . Special Weapon 4 | . . . . . . . . . . 1 1 . . . . . 1 . 1 . . . . . Impact Weapon 2 | . . . . . . . . . . . . . . . . . 1 . . . 1 . . . Slashing Weapon . | . . . . . . . . . . . . . . . . . . . . . . . . . Piercing Weapon 1 | . . . . . . . . . . . . . . . . . . . . . . . . 1 Special Melee Weapon 1 | . . . . . . . . . . 1 . . . . . . . . . . . . . . Unidentified Prototypes 11 | . . . . . 3 . . . 1 . 1 . . . . 2 . 1 . . 1 . . 2 Corrupted Parts 3 | . . . . . . . . . . . . 1 . . 1 . . . . . . . . 1 System Corruption 24 | . . . . . . . . . . . . 8 . . 11 . . . . . . . . 5 Parts Lost 105 | . 4 4 . . 2 1 1 1 1 8 2 1 1 . 1 11 1 8 2 9 4 . 8 35 Power 23 | . 1 1 . . . . . 1 . 3 1 1 1 . 1 2 . 2 1 1 1 . . 6 Propulsion 28 | . 1 1 . . 1 . . . . 1 . . . . . 1 1 2 . 1 3 . 1 15 Utility 32 | . 1 . . . 1 1 . . 1 3 . . . . . 6 . 3 1 4 . . 3 8 Weapon 22 | . 1 2 . . . . 1 . . 1 1 . . . . 2 . 1 . 3 . . 4 6 Highest Loss Streak 9 | . 3 3 . . 2 1 1 1 1 3 1 1 1 . 1 7 1 4 1 5 3 . 4 9 To Critical Strikes . | . . . . . . . . . . . . . . . . . . . . . . . . . Average Backups 18 | 3 8 10 13 12 16 17 17 23 32 32 30 30 17 5 4 4 4 17 27 21 19 18 17 14 Power 1 | . . . . . 1 1 1 1 . 2 2 1 . . . . . 1 . . 2 2 2 1 Propulsion 1 | 1 1 . . . 1 3 3 2 2 2 2 1 . . . . 1 . 2 1 1 1 2 1 Utility 11 | . 4 7 8 9 8 8 8 15 23 20 19 20 11 1 1 1 1 10 18 14 10 10 9 8 Weapon 3 | . 2 3 5 3 5 5 4 4 5 5 6 6 4 2 2 1 1 3 4 3 3 4 3 1 Tool/Special . | . . . . . . . . . . . . . . . . . . . . . . . . . Unused Backups 103 | . 3 . 2 . 15 2 2 10 5 14 1 . 17 . . 1 . 9 1 1 1 4 1 14 Power 2 | . . . . . . . . . . . . . . . . . . . . . . 2 . . Propulsion 14 | . 2 . . . 3 . . . . 2 . . 1 . . . . . . . 1 . . 5 Utility 73 | . 1 . 1 . 9 1 2 10 4 11 1 . 13 . . . . 8 1 1 . 2 1 7 Weapon 12 | . . . 1 . 3 1 . . 1 1 . . 3 . . . . 1 . . . . . 1 Tool/Special 2 | . . . . . . . . . . . . . . . . 1 . . . . . . . 1 Average Slot Usage (%) 82 | . 95 77 46 57 90 89 89 74 75 73 74 75 71 84 83 70 87 90 81 80 84 82 81 72 Engine 3 | . 8 . . . . . . . . 1 3 7 8 15 14 1 . 5 9 6 4 . . 2 Core 5 | . 5 5 . . 8 9 9 9 15 11 9 5 . . . 4 9 . . 2 4 . . . Reactor 1 | . . . . . . . . . . . . . 4 . . . . 3 1 . . 8 10 5 Treads 6 | . 22 5 . . . . . . . . . . . . . 4 11 6 17 16 16 14 14 7 Leg 2 | . . . . . . . . . . . . . . . . 2 4 14 . . . . . . Wheel 4 | . 1 14 14 14 11 9 9 9 7 7 7 7 7 7 7 1 . . . . . . . 4 Device 10 | . 12 . . . 8 2 . . 4 6 14 7 8 15 21 23 16 16 17 11 14 15 13 10 Storage 6 | . 14 14 14 14 9 9 9 9 7 7 7 7 4 . . . . 3 5 5 5 5 5 3 Processor 12 | . . . . . 20 27 33 24 7 7 7 14 15 15 8 6 17 10 5 8 12 15 15 16 Hackware 2 | . 1 14 14 14 1 . . . 5 1 . . . 7 7 6 5 2 . . . . . . Protection 7 | . . . . . 12 15 11 10 11 13 7 7 9 15 14 3 . 2 5 8 7 5 4 2 Energy Gun 1 | . 12 8 . . 4 . . . . . . . . . . . . . . . . . . 6 Energy Cannon 1 | . . . . . 4 . . . . . . 3 . . . . . 1 . 7 4 . 1 1 Ballistic Gun 4 | . 15 15 4 14 . . . 3 . 7 . . . . . 9 13 . . . 7 15 11 . Ballistic Cannon 7 | . . . . . 7 17 17 9 15 6 14 9 7 7 7 1 . 10 16 4 . . . . Peak Build Rating 125 | 9 12 12 28 28 47 49 58 83 84 85 82 88 88 53 56 62 85 117 118 113 116 122 122 125 Average Rating 69 | 5 8 9 13 28 38 47 47 63 82 81 79 86 68 53 53 49 71 92 114 101 111 120 116 95 On Entrance 63 | . 7 12 7 28 28 47 48 48 75 84 78 77 88 53 53 56 55 85 117 113 106 104 119 88 Avg Prop Armor Cover (%) 10 | . 14 14 . . . . . . . . . . . . . 8 9 10 . . . . . 12 Naked Turns . | . . . . . . . . . . . . . . . . . . . . . . . . . Heaviest Build 241 | 13 27 27 30 30 109 117 117 109 47 50 49 51 55 55 60 60 41 240 241 241 123 106 111 118 Greatest Support 230 | 40 40 10 10 10 28 28 28 28 28 28 28 28 28 28 28 30 103 180 180 180 201 230 210 178 Greatest Overweight (x) 36 | . 2 2 2 2 36 4 4 3 1 1 1 1 1 1 2 2 1 4 1 1 . . . 8 Average Overweight (x) 1 | . . 1 1 2 3 3 3 1 1 1 1 1 . 1 1 . . . 1 . . . . . Largest Inventory Capacity 40 | 8 15 15 15 15 25 25 25 40 40 40 40 40 40 5 5 5 5 30 30 30 20 20 20 20 Average Capacity 22 | 6 9 15 15 15 22 25 25 33 40 40 40 40 24 5 5 5 5 19 30 23 20 20 20 17 Most Carried 40 | 6 11 14 15 15 25 25 25 39 40 40 40 40 37 5 5 5 5 30 30 29 20 20 20 20 Average Carried 21 | 3 8 10 14 15 22 24 24 28 35 38 39 39 22 5 4 4 4 18 29 22 19 19 19 14 Final Capacity 40 | 8 15 15 15 15 25 25 25 40 40 40 40 40 5 5 5 5 5 30 30 20 20 20 20 20 Final Carried 40 | 5 10 14 15 15 25 25 23 34 40 39 40 37 5 5 5 5 5 30 30 20 20 20 18 13 Class Distribution -------------------- 35% | Mutant 14% | Bothacker-Mutant 12% | Scavenger-Mutant 10% | Scavenger-Tank 9% | Scavenger-Gunner 6% | Hauler-Mutant 4% | Hauler-Tank 3% | Scavenger-Skirmisher Dominant Class ---------------- Mutant | -10/Materials Mutant | -10/Mines Mutant | -10/Exiles Mutant | -9/Mines Mutant | -8/Materials Mutant | -8/Garrison Mutant | -8/Materials Hauler-Mutant | -8/Garrison Hauler-Mutant | -7/Factory Bothacker-Mutant | -7/Garrison Bothacker-Mutant | -7/Factory Bothacker-Mutant | -7/Lower Caves Bothacker-Mutant | -7/Lower Caves Mutant | -7/Zion Mutant | -6/Proximity Caves Scavenger-Mutant | -6/Factory Scavenger-Mutant | -5/Factory Scavenger-Tank | -5/Garrison Hauler-Tank | -5/Factory Scavenger-Tank | -5/Garrison Scavenger-Tank | -4/Factory Scavenger-Gunner | -4/Waste Scavenger-Gunner | -4/Factory Scavenger-Mutant | -3/Research Resources | -11 -10 -10 -10 -9 -8 -8 -8 -8 -7 -7 -7 -7 -7 -7 -6 -6 -5 -5 -5 -5 -4 -4 -4 -3 ----------- Run | Yrd Mat Min Exi Min Mat Gar Mat Gar Fac Gar Fac Low Low Zio Pro Fac Fac Gar Fac Gar Fac Was Fac Res Matter Collected 14098 | 280 597 40 . . 629 795 791 560 689 1154 1105 128 226 . 244 438 667 1902 528 1001 623 441 450 810 Remotely 164 | . . . . . . . . . . . . . . . . . . . . 72 92 . . . Salvage Created 16850 | 98 718 53 . . 1034 608 631 736 433 1601 708 214 16 . 262 646 504 2231 421 1326 1104 706 990 1810 Parts 819 | 9 62 8 . . 53 25 29 50 35 73 34 16 . . 13 35 30 78 30 43 57 7 54 78 Haulers Intercepted 12 | . 2 . . . 4 . . . 1 . 1 . . . . 1 . . . . 1 . . 2 Recyclers Shooed 5 | . . . . . . . . . 2 . 1 . . . . 1 . . . . . . 1 . Parts Field Recycled . | . . . . . . . . . . . . . . . . . . . . . . . . . Retrieved Matter . | . . . . . . . . . . . . . . . . . . . . . . . . . Parts Self-Destructed 21 | . . . . . . . . . . . . 6 . . 15 . . . . . . . . . Prevented 6 | . . . . . . . . . . . . 5 . . 1 . . . . . . . . . Parts Restored . | . . . . . . . . . . . . . . . . . . . . . . . . . Kills | -11 -10 -10 -10 -9 -8 -8 -8 -8 -7 -7 -7 -7 -7 -7 -6 -6 -5 -5 -5 -5 -4 -4 -4 -3 ------- Run | Yrd Mat Min Exi Min Mat Gar Mat Gar Fac Gar Fac Low Low Zio Pro Fac Fac Gar Fac Gar Fac Was Fac Res Combat Hostiles Destroyed 290 | . 20 3 . . 17 22 17 21 9 25 16 7 2 . 10 12 7 26 8 22 10 . 17 19 Melee 3 | . 1 . . . . . . . . . . . . . . . . . . . . . . 2 Guns 94 | . 18 3 . . 9 . . 13 . 11 . . . . . 6 7 4 . . 10 . 8 5 Cannons 140 | . . . . . 8 16 14 8 9 6 10 3 1 . 10 3 . 21 8 14 . . 5 4 AOE 42 | . . . . . . 6 2 . . 8 4 4 . . . 3 . . . 5 . . 4 6 Classes Destroyed 23 | 2 5 . . . 4 . 3 2 . . . . 1 . 2 1 . 2 . . . . 1 . Worker 14 | . . . . . 2 . 1 . . . 1 . . . . . . . . . 3 . 3 4 Builder 18 | . . . . . 1 . . . 1 . 2 . . . . 2 2 . 1 . 3 . 3 3 Tunneler 2 | 2 . . . . . . . . . . . . . . . . . . . . . . . . Hauler 12 | . 2 . . . 4 . . . 1 . 1 . . . . 1 . . . . 1 . . 2 Recycler 6 | 1 . . . . . . . . . . . . . . . . . . . . 2 . . 3 Minesweeper 1 | . . . . . . . . . . . . . . . 1 . . . . . . . . . Mechanic 1 | . . . . . . . . . . . . . . . . . . . . . . . 1 . Operator 4 | . 1 . . . 1 . . . 1 . . . . . . . . . 1 . . . . . Drone 2 | . . . . . . . . . . . . . . . 2 . . . . . . . . . Watcher 16 | . 3 . . . 3 . 2 . 4 . 1 . . . . 1 . . 1 . . . . 1 Swarmer 77 | . 9 3 . . 3 7 2 4 2 12 2 4 . . 3 4 . 8 1 5 2 . 6 . Cutter 2 | . . . . . . . . 2 . . . . . . . . . . . . . . . . Grunt 93 | . 11 . . . 5 10 5 . 1 3 8 3 . . 4 3 4 12 1 6 5 . 8 4 Brawler 5 | . . . . . . . 3 . . . 1 . . . . . . . . 1 . . . . Duelist 2 | . . . . . . . 1 . . . . . . . . . . . . 1 . . . . Protector 3 | . . . . . . . 2 . . . 1 . . . . . . . . . . . . . Sentry 51 | . . . . . 5 5 4 10 3 8 2 . . . . 1 2 3 . 4 . . 1 3 Demolisher 1 | . . . . . . . . . . . . . . . . . . 1 . . . . . . Specialist 1 | . . . . . . . . . . . . . . . . . . 1 . . . . . . Hunter 16 | . . . . . 4 . . 1 . . . . . . . 2 . 1 2 . 2 . . 4 Programmer 33 | . . . . . . . . 4 3 2 2 . . . 1 1 1 . 4 4 1 . 2 8 Behemoth 2 | . . . . . . . . . . . . . . . . 1 . . . 1 . . . . Master Thief 2 | . . . . . . . . . . . . . 2 . . . . . . . . . . . Butcher 1 | . . . . . . . . . . 1 . . . . . . . . . . . . . . Best Kill Streak 12 | 3 4 3 . . 5 4 5 4 3 6 4 4 1 . 5 5 5 3 5 5 5 . 12 9 Combat Bots Only 7 | . 3 3 . . 4 4 5 4 2 6 4 4 1 . 4 3 4 3 4 5 5 . 7 5 Max Kills in Single Turn 5 | 1 1 1 . . 1 2 3 1 1 3 3 1 1 . 1 3 2 2 2 5 2 . 4 4 Gunslinging 1 | . . . . . . . . . . 1 . . . . . . . . . . . . . . Exploded 5 | . . . . . . 2 2 . . 3 2 1 . . . 3 . . . 5 . . 3 2 Melee 1 | . 1 . . . . . . . . . . . . . . . . . . . . . . 1 Uniques/NPCs Destroyed . | . . . . . . . . . . . . . . . . . . . . . . . . . Combat | -11 -10 -10 -10 -9 -8 -8 -8 -8 -7 -7 -7 -7 -7 -7 -6 -6 -5 -5 -5 -5 -4 -4 -4 -3 -------- Run | Yrd Mat Min Exi Min Mat Gar Mat Gar Fac Gar Fac Low Low Zio Pro Fac Fac Gar Fac Gar Fac Was Fac Res Hostile Shots Fired 2229 | . 94 39 . . 42 81 49 108 92 327 119 29 2 . 59 142 51 171 72 143 146 . 151 312 Missed 670 | . 19 9 . . 13 18 16 25 36 106 27 7 . . 28 43 11 49 26 34 49 . 53 101 Hits 1559 | . 75 30 . . 29 63 33 83 56 221 92 22 2 . 31 99 40 122 46 109 97 . 98 211 Melee 14 | . . 3 . . . . . 2 . 2 3 . 2 . . . . . . 2 . . . . Projectile 1545 | . 75 27 . . 29 63 33 81 56 219 89 22 . . 31 99 40 122 46 107 97 . 98 211 AOE 11 | . . 2 . . . . . 1 . . . . . . 1 . 1 6 . . . . . . Critical Strikes 59 | . . . . . 1 2 3 3 1 4 7 . . . 1 2 . 6 . 5 5 . 8 11 Part Disruptions 1 | . . . . . . . . . 1 . . . . . . . . . . . . . . . Damage Taken 25500 | . 820 382 . . 438 924 510 1139 581 2563 1114 360 84 . 384 1807 880 1852 620 2155 1898 . 1984 5005 Core 3581 | . 112 105 . . 94 154 106 157 29 239 139 67 38 . 22 361 64 212 67 96 61 . 138 1320 Absorbed by Shields 2209 | . . . . . . . . 86 . 131 416 64 . . 141 246 . 496 271 358 . . . . Reduced by Siege Mode 77 | . . . . . . . . . . . . . . . . . . . . . 77 . . . Ignored by Resistances 361 | . . . . . . . . . . . . . . . . 15 . 171 . 175 . . . . Regen/Repaired (Parts) 165 | . . . . . . . . . . . 165 . . . . . . . . . . . . . Core Remaining (%) 48 | 100 . . . 13 . . . 7 . . . . . . 23 57 . . . 56 . . 82 . Volleys Fired 999 | 4 87 14 . . 49 65 49 41 37 97 58 15 13 . 26 48 21 98 28 77 43 6 48 75 Largest 3 | 2 2 2 . . 2 2 2 2 2 2 2 2 2 . 1 2 3 3 3 3 3 3 3 3 Hottest 257 | 100 100 70 . . 108 80 250 80 80 80 80 109 76 . 50 60 93 180 168 203 203 105 205 257 Shots Fired 1911 | 8 170 24 . . 95 109 97 108 73 165 102 18 14 . 25 77 57 204 77 134 125 18 105 106 Gun 819 | 8 168 24 . . 33 . . 44 . 99 . . . . . 60 56 32 . . 122 18 83 72 Cannon 1025 | . . . . . 62 103 97 64 73 51 96 14 12 . 25 17 . 158 76 126 2 . 21 28 Launcher 41 | . 2 . . . . 6 . . . 12 6 4 2 . . . . . . 2 . . 1 6 Special 26 | . . . . . . . . . . 3 . . . . . . 1 14 1 6 1 . . . Kinetic 1450 | . 88 11 . . 56 103 95 108 73 150 96 11 12 . 25 77 56 163 76 29 122 18 78 3 Thermal 325 | 8 80 13 . . . . 2 . . . . . . . . . . 27 . 97 2 . 21 75 Explosive 11 | . 2 . . . . . . . . . . . . . . . . . . 2 . . 1 6 Electromagnetic 99 | . . . . . 39 6 . . . 12 6 7 2 . . . . . . . . . 5 22 Robot Hit Streak 25 | 4 8 3 . . 17 11 7 25 7 21 8 7 7 . 6 12 8 10 8 18 12 19 12 11 Robot Miss Streak 5 | 1 4 4 . . 3 5 3 3 2 3 4 1 3 . 2 2 2 4 3 2 4 1 4 4 Penetration Max 1 | . . . . . . 1 . . . 1 . . . . 1 1 1 1 . . 1 . 1 . Secondary Targets 14 | . 1 1 . . . . . . . 3 . . . . . . 3 . . . 3 . 2 1 Max Gunslinging Chain 1 | . 1 1 . . . . . . . 1 . . . . . . 1 . . . 1 . 1 1 Autonomous 57 | . . . . . 12 . . 45 . . . . . . . . . . . . . . . . Shots Hit Robots 1211 | 5 101 9 . . 69 47 54 70 43 109 59 13 9 . 17 60 41 133 41 90 83 15 63 80 Core Hits 655 | 4 45 4 . . 41 27 31 26 23 66 33 10 2 . 9 33 20 50 11 48 36 5 47 84 Critical Kills 50 | . . . . . . . . 1 . 1 . . . . . 1 . 26 8 6 3 . 3 1 Critical Parts Destroyed 65 | . . . . . 1 . . . . 1 . . . . . 3 2 27 18 7 4 . 2 . Critical Strikes 179 | 2 6 1 . . 4 6 6 4 4 6 4 . . . 2 8 2 55 27 21 7 1 6 7 Burn 11 | 2 6 1 . . . . . . . . . . . . . . . . . . . . . 2 Meltdown 5 | . . . . . . . . . . . . . . . . . . 1 . 3 . . . 1 Destroy 124 | . . . . . 1 . . 1 . 2 . . . . . 6 2 54 27 18 7 1 5 . Blast 34 | . . . . . 3 6 6 3 4 4 4 . . . 2 2 . . . . . . . . Corrupt 2 | . . . . . . . . . . . . . . . . . . . . . . . 1 1 Impale 3 | . . . . . . . . . . . . . . . . . . . . . . . . 3 Melee Attacks 45 | . . . . . . . . . . 2 . . . . . . 6 18 . . . . . 19 Impact 24 | . . . . . . . . . . . . . . . . . 6 18 . . . . . . Slashing . | . . . . . . . . . . . . . . . . . . . . . . . . . Piercing 19 | . . . . . . . . . . . . . . . . . . . . . . . . 19 Sneak Attacks 5 | . . . . . . . . . . 2 . . . . . . . . . . . . . 3 Combat Hostiles . | . . . . . . . . . . . . . . . . . . . . . . . . . Follow-up Attacks . | . . . . . . . . . . . . . . . . . . . . . . . . . Damage Inflicted 38448 | 75 1062 98 . . 1745 1655 1889 1830 1235 3247 2315 551 256 . 1119 2348 1072 3690 766 3413 2440 380 2594 4668 Guns 13115 | 75 1058 83 . . 547 . . 1183 . 1464 . . . . . 1183 1072 613 . . 2440 380 1567 1450 Cannons 17438 | . . . . . 1128 1379 1562 647 1234 815 1632 298 216 . 1119 711 . 2013 766 2625 . . 405 888 Explosions 6226 | . . . . . 70 276 327 . 1 968 683 253 40 . . 454 . . . 788 . . 622 1744 Melee 1631 | . . . . . . . . . . . . . . . . . . 1064 . . . . . 567 Ramming 38 | . 4 15 . . . . . . . . . . . . . . . . . . . . . 19 Kinetic 23362 | . 441 35 . . 1053 1379 1461 1830 1234 2279 1632 235 216 . 1119 1894 1072 2013 766 361 2440 380 1472 50 Thermal 6560 | 75 617 48 . . 70 . 428 . . 35 209 76 . . . . . 613 . 2264 . . 405 1720 Explosive 3301 | . . . . . . . . . . . . . . . . 364 . . . 788 . . 405 1744 Electromagnetic 3556 | . . . . . 622 276 . . 1 933 474 240 40 . . 90 . . . . . . 312 568 Impact 1064 | . . . . . . . . . . . . . . . . . . 1064 . . . . . . Slashing . | . . . . . . . . . . . . . . . . . . . . . . . . . Piercing 567 | . . . . . . . . . . . . . . . . . . . . . . . . 567 Highest Corruption 30 | . . 2 2 2 3 3 3 5 2 6 9 17 17 17 30 5 . 5 8 14 3 3 6 24 Average Corruption 6 | . . 2 2 2 2 3 3 4 1 5 6 9 17 17 24 2 . 4 6 11 2 3 3 19 Corruption Purged 3 | . . . . . . . . . 3 . . . . . . . . . . . . . . . Corruption Blocked 14 | . . . . . . . . . . . . . . . . . . . . . . . . 14 Effects 383 | . . 3 5 4 37 26 20 20 2 16 29 17 15 7 21 9 . 8 26 38 8 14 14 44 Message Errors 102 | . . . 1 1 12 7 1 4 1 7 11 4 2 3 6 3 . 6 2 11 1 5 3 11 Matter Fused 86 | . . 1 . 2 12 4 5 5 . 3 2 3 5 2 3 2 . 1 5 12 2 5 3 9 Heat Flow Errors 46 | . . . . . 4 4 6 5 . 1 1 2 3 . 4 1 . . 5 5 2 . 1 2 Energy Discharges 48 | . . . 3 1 2 3 4 2 . 1 8 4 3 1 2 1 . . 3 3 . 1 2 4 Parts Rejected 4 | . . . . . . . . . . . . . . . . . . . 1 . 1 . . 2 Parts Fused 6 | . . . . . 1 . . . . . . 1 . . . 1 . . . 1 . . 1 1 Data Loss (minor) 38 | . . 1 . . 3 3 1 1 1 1 2 3 1 1 3 1 . . 5 3 2 3 . 3 Data Loss (major) 10 | . . 1 1 . 1 . . 2 . 1 2 . . . . . . . . 1 . . . 1 Misfires 12 | . . . . . . 3 2 . . 2 . . . . . . . . 1 1 . . 2 1 Alerts 6 | . . . . . 2 1 . . . . . . . . 1 . . . 1 . . . . 1 Misdirections 6 | . . . . . . . . . . . . . 1 . 1 . . . . . . . . 4 Weapon Failures 19 | . . . . . . 1 1 1 . . 3 . . . 1 . . 1 3 1 . . 2 5 Overload Shots . | . . . . . . . . . . . . . . . . . . . . . . . . . Overflow Damage 513 | . . . . . . 12 81 . . 23 11 . 48 . 157 53 . 18 4 34 . . 23 49 Projectiles 399 | . . . . . . 10 63 . . . 11 . 48 . 157 53 . 18 4 34 . . . 1 Explosions 72 | . . . . . . 2 18 . . 23 . . . . . . . . . . . . 23 6 Melee 42 | . . . . . . . . . . . . . . . . . . . . . . . . 42 Knockbacks 83 | . . . . . 3 10 6 1 9 . 13 . 6 . 9 3 . 13 10 . . . . . Impact 5 | . . . . . . . . . . . . . . . . . . 5 . . . . . . Kinetic 70 | . . . . . 3 9 6 1 6 . 10 . 6 . 8 3 . 8 10 . . . . . Secondary 8 | . . . . . . 1 . . 3 . 3 . . . 1 . . . . . . . . . Self-Inflicted Damage 918 | . . 7 . . . . . . . 126 35 69 84 . . 82 . . . 248 . . 194 73 Shots 30 | . . . . . . . . . . 6 2 2 2 . . 1 . . . 10 . . 3 4 Rammed 8 | . 2 2 . . . . . . . . . . . . . . . . . . . . . 4 Targets Rammed 9 | . 3 2 . . . . . . . . . . . . . . . . . . . . . 4 Kicked . | . . . . . . . . . . . . . . . . . . . . . . . . . Crushed 1 | . 1 . . . . . . . . . . . . . . . . . . . . . . . Highest Temperature 402 | 117 232 40 . . 269 340 402 249 174 306 72 270 330 . 268 164 6 243 237 263 124 . 194 348 Average Temperature 75 | 49 41 16 . . 65 92 94 75 49 77 32 104 134 . 84 25 4 59 47 81 68 . 94 97 Received Heat Transfer 5141 | . 345 120 . . 108 522 180 245 117 676 312 84 . . 60 273 237 392 42 351 466 . 288 323 Effects 10 | . . . . . 3 3 1 1 . . . . 1 . . . . . . . . . . 1 Shutdowns 1 | . . . . . . . . . . . . . . . . . . . . . . . . 1 Energy Bleed 3 | . . . . . . . 1 1 . . . . 1 . . . . . . . . . . . Interference 6 | . . . . . 3 3 . . . . . . . . . . . . . . . . . . Siege Activations 1 | . . . . . . . . . . . . . . . . . . . . . 1 . . . Total Turns 33 | . . . . . . . . . . . . . . . . . . . . . 33 . . . Longest Duration 33 | . . . . . . . . . . . . . . . . . . . . . 33 . . . Martial Activations . | . . . . . . . . . . . . . . . . . . . . . . . . . Shielding Activations . | . . . . . . . . . . . . . . . . . . . . . . . . . Robots Disrupted . | . . . . . . . . . . . . . . . . . . . . . . . . . Combat Hostiles . | . . . . . . . . . . . . . . . . . . . . . . . . . Robots Corrupted 8 | . . . . . . . . . . 3 2 . 1 . 1 . . . . . . . . 1 Combat Hostiles 4 | . . . . . . . . . . . 2 . 1 . . . . . . . . . . 1 Parts Fried 30 | . . . . . 5 3 . . . 5 4 . 6 . 1 . . . . 1 . . 1 4 Impact Corruptions 1 | . . . . . . . . . . . . . . . 1 . . . . . . . . . Robots Melted 7 | . 1 . . . . . 1 . . . . . . . . . . 1 . 3 . . . 1 Combat Hostiles 7 | . 1 . . . . . 1 . . . . . . . . . . 1 . 3 . . . 1 Parts Melted 30 | . 6 . . . . . 6 . . . . . . . . . . 1 . 9 2 . . 6 Heat Transferred 11073 | 370 2257 222 . . 100 . 1885 . . 50 150 100 . . . . . 950 . 2621 . . 407 1961 Parts Sabotaged . | . . . . . . . . . . . . . . . . . . . . . . . . . Parts Stolen 2 | . . . . . . . . . . . . . 2 . . . . . . . . . . . Parts Stripped . | . . . . . . . . . . . . . . . . . . . . . . . . . Power Chain Reactions 12 | . . . . . 2 . . . . 4 1 4 1 . . . . . . . . . . . Alert | -11 -10 -10 -10 -9 -8 -8 -8 -8 -7 -7 -7 -7 -7 -7 -6 -6 -5 -5 -5 -5 -4 -4 -4 -3 ------- Run | Yrd Mat Min Exi Min Mat Gar Mat Gar Fac Gar Fac Low Low Zio Pro Fac Fac Gar Fac Gar Fac Was Fac Res Maximum Alert Level 5 | . . . . . 1 4 3 3 2 4 3 . . . . 3 1 5 3 5 3 1 2 2 Low Security (%) 28 | 100 100 100 . 100 99 6 . . . . . . . . . . 65 3 . . . 32 64 9 Level 1 8 | . . . . . . 17 . 2 . 5 . . . . . . 34 9 . . . 67 9 29 Level 2 28 | . . . . . . 38 63 54 100 26 23 . . . . 64 . 32 . . 6 . 26 61 Level 3 27 | . . . . . . 32 36 42 . 41 76 . . . . 35 . 22 100 65 93 . . . Level 4 5 | . . . . . . 5 . . . 26 . . . . . . . 21 . 24 . . . . Level 5 1 | . . . . . . . . . . . . . . . . . . 10 . 9 . . . . High Security . | . . . . . . . . . . . . . . . . . . . . . . . . . Max Security . | . . . . . . . . . . . . . . . . . . . . . . . . . Peak Influence 1930 | 10 140 50 . . 201 1150 834 973 537 1451 883 . . . . 786 294 1930 1065 1607 1099 378 667 584 Initial 1012 | . . 22 . . . 123 560 393 510 350 761 . . . . 503 294 106 1012 696 843 378 95 332 Average 548 | . 69 9 . . 78 601 672 691 494 840 744 . . . . 670 169 913 935 1059 850 251 252 403 Influence Increases 13763 | 15 615 70 . . 623 1037 773 590 475 1221 684 160 75 . 205 1080 202 2024 481 1021 698 4 904 806 Destroy 0b10 Robot/C 6500 | . 400 60 . . 340 440 400 420 200 600 300 140 . . 160 240 140 780 240 580 340 . 340 380 Destroy 0b10 Robot/NC 555 | 15 30 . . . 55 . 40 . 35 45 30 . . . 15 20 10 55 15 20 70 . 35 65 Destroy Leader 1114 | . 80 10 . . 124 20 108 20 80 20 84 20 . . 30 74 40 70 62 60 58 . 60 94 Allied During Kill 384 | . . . . . . . 22 . 1 18 . . . . . . . 152 40 26 125 . . . Successful Hack 195 | . 19 . . . 11 7 25 14 14 14 17 . . . . 14 . . . 14 16 . 14 16 Select Force Hacks 90 | . 60 . . . . . . . . . . . . . . . . . . . . . 30 . Disable Machine 810 | . . . . . 45 15 60 . 105 75 120 . . . . 45 . . 75 15 45 . 180 30 Anti-Garrison Action 1900 | . . . . . . 400 . 100 . 350 . . . . . 150 . 850 . 50 . . . . Destroy Structure 940 | . 11 . . . 33 50 73 36 10 69 43 . . . . 42 12 12 4 181 44 4 200 116 Advance Influence 450 | . . . . . . . . . . . . . . . . 450 . . . . . . . . Partial Spotted 30 | . 15 . . . . . 15 . . . . . . . . . . . . . . . . . Lose Combat Pursuer 795 | . . . . . 15 105 30 . 30 30 90 . 75 . . 45 . 105 45 75 . . 45 105 Influence Decreases 13635 | 15 558 127 . . 433 77 1318 222 947 271 1270 569 247 284 120 564 651 246 1416 409 1224 949 407 1311 Entered New Map 6311 | . . 35 . . . 67 590 212 463 151 690 321 87 284 . 32 307 46 918 299 764 703 41 301 Time Decay 5344 | 15 518 92 . . 433 . 398 . 434 . 410 238 150 . 110 422 334 . 398 . 350 246 286 510 Lost Part 990 | . 40 . . . . 10 10 10 10 80 20 10 10 . 10 110 10 80 20 90 40 . 80 350 Lost Ally 390 | . . . . . . . 20 . 40 40 . . . . . . . 120 80 20 70 . . . Purge Threat 600 | . . . . . . . 300 . . . 150 . . . . . . . . . . . . 150 Squads Dispatched 47 | . 4 . . . 3 . 3 . 4 . 6 . . . . 5 4 . 4 . 5 . 3 6 Investigation 12 | . 3 . . . 3 . . . . . 2 . . . . . 1 . . . . . 2 1 Extermination 13 | . . . . . . . . . 3 . 2 . . . . 1 1 . 1 . 1 . . 4 Reinforcement 10 | . 1 . . . . . . . 1 . . . . . . 1 . . 2 . 4 . 1 . Assault 9 | . . . . . . . 3 . . . 2 . . . . 3 . . 1 . . . . . Garrison 3 | . . . . . . . . . . . . . . . . . 2 . . . . . . 1 Intercept . | . . . . . . . . . . . . . . . . . . . . . . . . . Searches Triggered . | . . . . . . . . . . . . . . . . . . . . . . . . . Construction Impeded 3 | . . . . . . . . . . . . . . . . . . . . . 2 . 1 . Haulers Reinforced 2 | . . . . . . . . . . . . . . . . 1 . . . . 1 . . . Active Scanning Responses . | . . . . . . . . . . . . . . . . . . . . . . . . . Cargo Convoy Interrupts . | . . . . . . . . . . . . . . . . . . . . . . . . . Stealth | -11 -10 -10 -10 -9 -8 -8 -8 -8 -7 -7 -7 -7 -7 -7 -6 -6 -5 -5 -5 -5 -4 -4 -4 -3 --------- Run | Yrd Mat Min Exi Min Mat Gar Mat Gar Fac Gar Fac Low Low Zio Pro Fac Fac Gar Fac Gar Fac Was Fac Res Distress Signals 12 | . 2 2 . . 1 . 2 . 1 . . . . . 1 . . . . . 1 . . 2 Communications Jammed . | . . . . . . . . . . . . . . . . . . . . . . . . . Distress Signals . | . . . . . . . . . . . . . . . . . . . . . . . . . Times Spotted 445 | . 28 8 . . 25 22 34 19 18 40 28 10 7 . 12 16 11 41 18 22 22 . 27 37 Peak Tracking Total 9 | . 3 3 . . 3 5 6 4 3 7 5 4 5 . 6 7 4 5 4 8 6 . 5 9 Tactical Retreats 30 | . . 2 . . 1 3 1 . 1 2 3 . 2 . . 1 . 5 2 2 . . 2 3 Traps | -11 -10 -10 -10 -9 -8 -8 -8 -8 -7 -7 -7 -7 -7 -7 -6 -6 -5 -5 -5 -5 -4 -4 -4 -3 ------- Run | Yrd Mat Min Exi Min Mat Gar Mat Gar Fac Gar Fac Low Low Zio Pro Fac Fac Gar Fac Gar Fac Was Fac Res Traps Triggered 36 | . 1 . . . 3 8 . 3 . 6 3 . . . . 1 1 6 . 2 1 . . 1 Indirectly 1 | . . . . . . 1 . . . . . . . . . . . . . . . . . . Trap Hack Attempts . | . . . . . . . . . . . . . . . . . . . . . . . . . Triggered . | . . . . . . . . . . . . . . . . . . . . . . . . . Disarmed . | . . . . . . . . . . . . . . . . . . . . . . . . . Reprogrammed . | . . . . . . . . . . . . . . . . . . . . . . . . . Reused . | . . . . . . . . . . . . . . . . . . . . . . . . . Traps Extracted . | . . . . . . . . . . . . . . . . . . . . . . . . . Installed 7 | . . . . 4 . . . . . . . . 3 . . . . . . . . . . . Triggered . | . . . . . . . . . . . . . . . . . . . . . . . . . Most Traps Carried 6 | . . . . . . . . . . 3 3 3 3 . 6 6 6 6 6 6 6 6 6 6 Machines | -11 -10 -10 -10 -9 -8 -8 -8 -8 -7 -7 -7 -7 -7 -7 -6 -6 -5 -5 -5 -5 -4 -4 -4 -3 ---------- Run | Yrd Mat Min Exi Min Mat Gar Mat Gar Fac Gar Fac Low Low Zio Pro Fac Fac Gar Fac Gar Fac Was Fac Res Machines Disabled 75 | . . . . . 3 6 4 2 7 11 8 . . . . 4 . 5 5 3 3 . 12 2 Max in Single Turn 5 | . . . . . 2 1 1 1 2 2 5 . . . . 2 . 1 1 2 1 . 4 1 Garrison Access 4 | . . . . . . . . . . . . . . . . 1 . . . . 1 . 1 1 Garrison Relay 16 | . . . . . . 5 . 2 . 4 . . . . . . . 4 . 1 . . . . Phase Generator 2 | . . . . . . . . . . 1 . . . . . . . . . 1 . . . . Machines Repaired . | . . . . . . . . . . . . . . . . . . . . . . . . . Machines Dismantled . | . . . . . . . . . . . . . . . . . . . . . . . . . Machines Sabotaged . | . . . . . . . . . . . . . . . . . . . . . . . . . Overloaded Fab Kills . | . . . . . . . . . . . . . . . . . . . . . . . . . Hacking | -11 -10 -10 -10 -9 -8 -8 -8 -8 -7 -7 -7 -7 -7 -7 -6 -6 -5 -5 -5 -5 -4 -4 -4 -3 --------- Run | Yrd Mat Min Exi Min Mat Gar Mat Gar Fac Gar Fac Low Low Zio Pro Fac Fac Gar Fac Gar Fac Was Fac Res Machines Accessed 74 | . 8 . 2 . 9 3 9 1 6 3 8 . . . . 5 3 3 2 1 2 . 5 4 Terminals 39 | . 6 . . . 5 3 7 1 2 3 6 . . . . . . 3 . 1 . . 1 1 Fabricators 7 | . . . . . . . . . . . . . . . . 2 2 . 1 . 1 . 1 . Repair Stations 1 | . . . . . . . . . . . 1 . . . . . . . . . . . . . Recycling Units 10 | . 2 . . . 2 . . . 1 . 1 . . . . 2 . . . . . . 2 . Scanalyzers 7 | . . . . . 1 . 1 . 2 . . . . . . 1 . . . . . . . 2 Garrison Access 8 | . . . . . 1 . 1 . 1 . . . . . . . 1 . 1 . 1 . 1 1 Total Hacks 167 | . 22 . 3 . 25 8 28 2 12 7 17 . . . . 10 4 5 3 1 5 . 7 8 Successful 84 | . 11 . 3 . 12 1 15 1 8 2 8 . . . . 5 2 1 3 1 3 . 4 4 Failed 83 | . 11 . . . 13 7 13 1 4 5 9 . . . . 5 2 4 . . 2 . 3 4 Catastrophic 21 | . 1 . . . 1 1 5 . 1 2 3 . . . . 3 1 1 . . . . . 2 Database Lockouts . | . . . . . . . . . . . . . . . . . . . . . . . . . Manual 64 | . 16 . 1 . 15 . 22 . . . 5 . . . . . . . 1 . . . 3 1 Terminals 98 | . 15 . . . 15 8 24 2 3 7 13 . . . . . . 5 . 1 . . 1 4 Fabricators 12 | . . . . . . . . . . . . . . . . 3 3 . 2 . 3 . 1 . Repair Stations 2 | . . . . . . . . . . . 2 . . . . . . . . . . . . . Recycling Units 25 | . 7 . . . 6 . . . 1 . 2 . . . . 5 . . . . . . 4 . Scanalyzers 18 | . . . . . 3 . 3 . 7 . . . . . . 2 . . . . . . . 3 Garrison Access 9 | . . . . . 1 . 1 . 1 . . . . . . . 1 . 1 . 2 . 1 1 Terminal Hacks 21 | . 1 . 3 . . 1 4 1 1 2 4 . . . . . . 1 . 1 . . . 2 Record 3 | . . . 2 . . . 1 . . . . . . . . . . . . . . . . . Prototype ID Bank 3 | . 1 . . . . . . . . . 1 . . . . . . . . . . . . 1 Open Door 3 | . . . . . . 1 . . . 1 . . . . . . . 1 . . . . . . Branch Access Points 1 | . . . . . . . . . . . 1 . . . . . . . . . . . . . Emergency Access Points 3 | . . . . . . . . 1 . 1 . . . . . . . . . 1 . . . . Scanalyzer Index 1 | . . . . . . . . . 1 . . . . . . . . . . . . . . . Unreport Threat 4 | . . . . . . . 2 . . . 1 . . . . . . . . . . . . 1 Hauler Manifests 1 | . . . . . . . . . . . 1 . . . . . . . . . . . . . Zone Layout 1 | . . . . . . . 1 . . . . . . . . . . . . . . . . . Proto ID Catalog 1 | . . . 1 . . . . . . . . . . . . . . . . . . . . . Fabricator Hacks 6 | . . . . . . . . . . . . . . . . 2 1 . 1 . 1 . 1 . Network Status 3 | . . . . . . . . . . . . . . . . 1 1 . 1 . . . . . Build 3 | . . . . . . . . . . . . . . . . 1 . . . . 1 . 1 . Repair Station Hacks 2 | . . . . . . . . . . . 2 . . . . . . . . . . . . . Scan Component 1 | . . . . . . . . . . . 1 . . . . . . . . . . . . . Repair 1 | . . . . . . . . . . . 1 . . . . . . . . . . . . . Recycling Unit Hacks 7 | . 1 . . . 2 . . . 1 . 1 . . . . 1 . . . . . . 1 . Retrieve Components 7 | . 1 . . . 2 . . . 1 . 1 . . . . 1 . . . . . . 1 . Scanalyzer 13 | . . . . . 3 . 2 . 5 . . . . . . 2 . . . . . . . 1 Retrieve Study 13 | . . . . . 3 . 2 . 5 . . . . . . 2 . . . . . . . 1 Garrison Access Hacks 9 | . . . . . 1 . 1 . 1 . . . . . . . 1 . 1 . 2 . 1 1 Unlock Access 6 | . . . . . 1 . 1 . 1 . . . . . . . 1 . 1 . 1 . . . Seal Access 3 | . . . . . . . . . . . . . . . . . . . . . 1 . 1 1 Unauthorized Hacks 26 | . 9 . . . 6 . 8 . . . 1 . . . . . . . 1 . . . 1 . Terminals 22 | . 7 . . . 6 . 8 . . . 1 . . . . . . . . . . . . . Assimilate 1 | . . . . . 1 . . . . . . . . . . . . . . . . . . . Botnet 4 | . 1 . . . 1 . 2 . . . . . . . . . . . . . . . . . Operators 1 | . 1 . . . . . . . . . . . . . . . . . . . . . . . Skim 16 | . 5 . . . 4 . 6 . . . 1 . . . . . . . . . . . . . Fabricators 1 | . . . . . . . . . . . . . . . . . . . 1 . . . . . Liberate 1 | . . . . . . . . . . . . . . . . . . . 1 . . . . . Repair Stations . | . . . . . . . . . . . . . . . . . . . . . . . . . Recycling Units 3 | . 2 . . . . . . . . . . . . . . . . . . . . . 1 . Tunnel 3 | . 2 . . . . . . . . . . . . . . . . . . . . . 1 . Scanalyzers . | . . . . . . . . . . . . . . . . . . . . . . . . . Garrison Access . | . . . . . . . . . . . . . . . . . . . . . . . . . Data Cores Recovered . | . . . . . . . . . . . . . . . . . . . . . . . . . Used . | . . . . . . . . . . . . . . . . . . . . . . . . . Hacking Detections 54 | . 7 . . . 8 2 8 1 4 2 6 . . . . 3 1 2 . 1 2 . 4 3 Full Trace Events 7 | . 1 . . . 1 1 . . . . 1 . . . . . 1 1 . . . . 1 . Feedback Events . | . . . . . . . . . . . . . . . . . . . . . . . . . Feedback Blocked . | . . . . . . . . . . . . . . . . . . . . . . . . . Robot Schematics Acquired . | . . . . . . . . . . . . . . . . . . . . . . . . . Robots Built 3 | . . . . . . . . . . . . . . . . . . . . . 3 . . . Authchips . | . . . . . . . . . . . . . . . . . . . . . . . . . Time 93 | . . . . . . . . . . . . . . . . . . . . . 93 . . . Total Robot Build Rating 21 | . . . . . . . . . . . . . . . . . . . . . 21 . . . Part Schematics Acquired . | . . . . . . . . . . . . . . . . . . . . . . . . . Parts Built 3 | . . . . . . . . . . . . . . . . 1 . . . . . . 2 . Authchips . | . . . . . . . . . . . . . . . . . . . . . . . . . Time 116 | . . . . . . . . . . . . . . . . 58 . . . . . . 58 . Total Part Build Rating 21 | . . . . . . . . . . . . . . . . 7 . . . . . . 14 . Part Studies Acquired 11 | . . . . . 2 . 1 . 5 . . . . . . 2 . . . . . . . 1 Parts Repaired 1 | . . . . . . . . . . . 1 . . . . . . . . . . . . . Time 44 | . . . . . . . . . . . 44 . . . . . . . . . . . . . Parts Recycled . | . . . . . . . . . . . . . . . . . . . . . . . . . Recycled Matter . | . . . . . . . . . . . . . . . . . . . . . . . . . Retrieved Matter . | . . . . . . . . . . . . . . . . . . . . . . . . . Retrieved Components 19 | . 2 . . . 13 . . . 1 . 2 . . . . . . . . . . . 1 . Parts Scanalyzed . | . . . . . . . . . . . . . . . . . . . . . . . . . Part Schematics Acquired . | . . . . . . . . . . . . . . . . . . . . . . . . . Parts Damaged . | . . . . . . . . . . . . . . . . . . . . . . . . . Bothacking | -11 -10 -10 -10 -9 -8 -8 -8 -8 -7 -7 -7 -7 -7 -7 -6 -6 -5 -5 -5 -5 -4 -4 -4 -3 ------------ Run | Yrd Mat Min Exi Min Mat Gar Mat Gar Fac Gar Fac Low Low Zio Pro Fac Fac Gar Fac Gar Fac Was Fac Res Used RIF Installer 6 | . . . . . . 1 . 1 . 1 . . . . . . . 2 . 1 . . . . Hotswap 1 | . . . . . . . . . . . . . . . . . . 1 . . . . . . Patrol Navigation 1 | . . . . . . . . . . . . . . . . . . . . 1 . . . . Structural Interface 1 | . . . . . . . . 1 . . . . . . . . . . . . . . . . Program Shield 1 | . . . . . . . . . . . . . . . . . . 1 . . . . . . Autooverride 1 | . . . . . . . . . . 1 . . . . . . . . . . . . . . Robots Hacked 5 | . . . . . . . . . . 2 . . . . . . 1 2 . . . . . . Non-combat . | . . . . . . . . . . . . . . . . . . . . . . . . . Combat 5 | . . . . . . . . . . 2 . . . . . . 1 2 . . . . . . Robot Hacks Applied 6 | . . . . . . . . . . 3 . . . . . . 1 2 . . . . . . amplify_resonance 1 | . . . . . . . . . . 1 . . . . . . . . . . . . . . disable_weapons 1 | . . . . . . . . . . . . . . . . . . 1 . . . . . . formatsys_high 4 | . . . . . . . . . . 2 . . . . . . 1 1 . . . . . . Relay Couplers Released 64 | . . . . . . 20 . 7 . 18 . . . . . . . 16 . 3 . . . . Machine Destruction 64 | . . . . . . 20 . 7 . 18 . . . . . . . 16 . 3 . . . . Attached 6 | . . . . . . . . . . 3 . . 1 . . . . 2 . . . . . . Fabnet Peak Effective % . | . . . . . . . . . . . . . . . . . . . . . . . . . Robots Rewired 14 | . . . . . . . . 2 . 2 . . . . . . . 6 . 3 1 . . . Allies Hacked 1 | . . . . . . . . . . . . . . . . . . . . . 1 . . . Hacks Repelled . | . . . . . . . . . . . . . . . . . . . . . . . . . Allies | -11 -10 -10 -10 -9 -8 -8 -8 -8 -7 -7 -7 -7 -7 -7 -6 -6 -5 -5 -5 -5 -4 -4 -4 -3 -------- Run | Yrd Mat Min Exi Min Mat Gar Mat Gar Fac Gar Fac Low Low Zio Pro Fac Fac Gar Fac Gar Fac Was Fac Res Total Allies 26 | . . . . . . 1 . 2 . 4 . . . . . . 1 7 3 3 5 . . . Largest Group 5 | . . . . . . 1 1 2 2 2 . . . . . . 1 4 3 3 5 . . . Highest-Rated Group 163 | . . . . . . 39 39 70 70 45 . . . . . . 49 143 90 123 163 . . . Highest-Rated Ally 51 | . . . . . . 39 39 39 39 32 . . . . . . 49 51 46 41 47 . . . Total Orders 15 | . . . . . . . . . . 2 . . . . . 4 4 1 . . 1 . 1 2 STAY 1 | . . . . . . . . . . 1 . . . . . . . . . . . . . . FOLLOW 1 | . . . . . . . . . . 1 . . . . . . . . . . . . . . EXPLORE 1 | . . . . . . . . . . . . . . . . 1 . . . . . . . . RETURN 12 | . . . . . . . . . . . . . . . . 3 4 1 . . 1 . 1 2 Ally Attacks 262 | . . . . . . . 39 . 7 17 . . . . . . . 99 32 11 57 . . . Total Damage 5386 | . . . . . . . 551 . 98 465 . . . . . . . 2161 406 449 1256 . . . Kills 52 | . . . . . . . 8 . 1 5 . . . . . . . 14 4 8 12 . . . Allies Corrupted 2 | . . . . . . . . . . . . . . . . . . . 1 1 . . . . Allies Melted . | . . . . . . . . . . . . . . . . . . . . . . . . . Intel | -11 -10 -10 -10 -9 -8 -8 -8 -8 -7 -7 -7 -7 -7 -7 -6 -6 -5 -5 -5 -5 -4 -4 -4 -3 ------- Run | Yrd Mat Min Exi Min Mat Gar Mat Gar Fac Gar Fac Low Low Zio Pro Fac Fac Gar Fac Gar Fac Was Fac Res Active Infowar (turns) 9754 | 28 646 . . . 2088 1485 955 433 . . . 452 192 . . 28 747 85 . . 377 535 621 1082 Optics 4961 | . . . . . 2088 1485 955 433 . . . . . . . . . . . . . . . . Sensors 1111 | . . . . . 1 . . . . . . 452 192 . . . . . . . . . . 466 Terrain 861 | 1 . . . . . . . . . . . . . . . 28 747 85 . . . . . . Structural 2355 | . . . . . . . . . . . . . . . . . . . . . 377 535 621 822 Traps 1 | . . . . . . . . . . . . . . . . . 1 . . . . . . . Seismic 1190 | 27 646 . . . 317 . . . . . . . . . . . . . . . . . . 200 Jamming 1 | . . . . . . . . . . . . . . . . . . . . . . . . 1 Robot Analysis Total . | . . . . . . . . . . . . . . . . . . . . . . . . . Derelict Logs Recovered 3 | . . 2 . . . . . . . . . 1 . . . . . . . . . . . . Drone Launches 12 | . . . . . . . . . . . . . . . . 3 4 1 . . 1 . 1 2 Drone Recoveries 12 | . . . . . . . . . . . . . . . . 3 4 1 . . 1 . 1 2 Exploration | -11 -10 -10 -10 -9 -8 -8 -8 -8 -7 -7 -7 -7 -7 -7 -6 -6 -5 -5 -5 -5 -4 -4 -4 -3 ------------- Run | Yrd Mat Min Exi Min Mat Gar Mat Gar Fac Gar Fac Low Low Zio Pro Fac Fac Gar Fac Gar Fac Was Fac Res Turns Passed 22488 | 115 1600 431 324 266 2088 1485 955 949 1062 1338 994 502 309 164 324 1024 747 2660 952 870 793 535 621 1380 Spaces Moved 12593 | 53 740 345 320 239 1039 743 508 535 827 897 707 433 251 154 235 599 391 1155 333 348 362 300 272 807 Core 36 | 11 . . . . 7 . . . . . . . . . . 2 . 2 . . . . . 14 Treads 3352 | 42 600 . . . . . . . . . . . . . . 145 214 459 333 348 362 300 272 277 Legs 1012 | . . . . . . . . . . . . . . . . 281 154 577 . . . . . . Wheels 7786 | . 140 345 320 239 1032 743 508 535 827 897 707 433 251 154 235 171 . . . . . . . 249 Hover 407 | . . . . . . . . . . . . . . . . . 23 117 . . . . . 267 Flight . | . . . . . . . . . . . . . . . . . . . . . . . . . Fastest Speed 40 | 50 110 95 95 110 115 145 145 100 105 105 105 105 90 105 105 105 40 60 240 160 160 160 160 45 Average Speed 138 | 137 151 109 99 110 148 156 149 121 107 105 105 105 104 105 106 137 147 186 240 179 162 164 160 116 Slowest Speed 1850 | 160 240 110 110 110 1850 160 160 145 115 105 105 105 105 105 120 160 240 330 240 240 170 170 160 255 Overloaded Moves 6 | . . . . . . . . . . . . . . . . . . . . . . . . 6 Propulsion Burnouts . | . . . . . . . . . . . . . . . . . . . . . . . . . Robots Hopped . | . . . . . . . . . . . . . . . . . . . . . . . . . Potential Cave-ins . | . . . . . . . . . . . . . . . . . . . . . . . . . Cave-ins Triggered . | . . . . . . . . . . . . . . . . . . . . . . . . . Exploration Rate (%) 46 | 4 96 68 68 57 60 67 64 49 25 96 21 64 46 13 38 19 12 95 12 50 15 94 9 20 Regions Visited 24 Branch Regions 7 Pre-discovered Areas 5 | . 2 1 1 . . . . . . . . . . . . . . . . . . . 1 . Known Exits Taken 10 | . . . . . 1 . 1 . 1 . 1 1 1 1 . 1 1 . 1 . . . . . Unknown Exits Taken 7 | 1 1 1 1 1 . . . . . . . . . . 1 . . . . . . . 1 . Scrap Searched 6 | . . . . . . . . . . . . 4 1 . 1 . . . . . . . . . Spaces Dug 41 | . 15 . . . 5 . . 1 . . 2 . . . . . 5 . . 3 . . 10 . Terrain Destroyed 700 | . 15 . . . 36 3 61 16 6 95 42 12 13 . 11 42 12 10 . 108 28 4 128 58 Melee 5 | . . . . . . . . . . . . . . . . . 5 . . . . . . . Projectile 230 | . . . . . 28 3 55 16 6 . 9 2 2 . 11 9 7 9 . 14 28 4 25 2 AOE 464 | . 15 . . . 8 . 6 . . 95 33 10 11 . . 33 . . . 94 . . 103 56 Terrain Rammed . | . . . . . . . . . . . . . . . . . . . . . . . . . Walls Destroyed . | . . . . . . . . . . . . . . . . . . . . . . . . . Machines Disabled . | . . . . . . . . . . . . . . . . . . . . . . . . . Actions | -11 -10 -10 -10 -9 -8 -8 -8 -8 -7 -7 -7 -7 -7 -7 -6 -6 -5 -5 -5 -5 -4 -4 -4 -3 --------- Run | Yrd Mat Min Exi Min Mat Gar Mat Gar Fac Gar Fac Low Low Zio Pro Fac Fac Gar Fac Gar Fac Was Fac Res Total 15886 | 86 1065 375 328 242 1505 958 612 782 926 1137 852 462 283 156 268 707 501 1473 430 469 472 331 359 1107 Wait 1049 | 11 189 7 . . 326 70 34 51 25 19 55 . . . 1 17 28 49 48 5 24 . 20 70 Move 12573 | 52 739 344 319 238 1039 742 508 534 827 896 706 432 250 153 234 598 390 1154 332 347 362 299 271 807 Hop . | . . . . . . . . . . . . . . . . . . . . . . . . . Pick Up 327 | 11 17 4 3 . 36 6 3 46 17 35 11 3 8 1 2 5 9 45 8 7 8 3 4 35 Fast Attach 118 | 1 1 . 1 . 9 2 1 . . . 1 . 2 . 1 17 13 27 . 6 9 6 2 19 Attach 154 | 6 4 2 . . 11 1 6 17 4 18 3 4 4 . . 6 6 11 3 11 4 . 3 30 Detach 30 | . . 2 . . 1 . 4 5 . 1 . 1 . . . 4 . 3 . 2 . 1 . 6 Swap 147 | 1 12 . . . 5 9 1 3 10 16 11 4 . 1 3 3 14 15 4 3 10 2 7 13 Drop 276 | . 13 . 5 . 29 7 6 27 6 24 7 3 3 1 1 9 14 48 7 11 12 10 4 29 Fire 999 | 4 87 14 . . 49 65 49 41 37 97 58 15 13 . 26 48 21 98 28 77 43 6 48 75 Melee 45 | . . . . . . . . . . 2 . . . . . . 6 18 . . . . . 19 Ram 6 | . . 2 . . . . . . . . . . . . . . . . . . . . . 4 Kick . | . . . . . . . . . . . . . . . . . . . . . . . . . Crush 3 | . 3 . . . . . . . . . . . . . . . . . . . . . . . Escape Stasis 106 | . . . . . . 56 . 16 . 29 . . . . . . . 5 . . . . . . Rewire 46 | . . . . . . . . 42 . . . . . . . . . . . . . 4 . . Trap 7 | . . . . 4 . . . . . . . . 3 . . . . . . . . . . . Miscellaneous . | . . . . . . . . . . . . . . . . . . . . . . . . . Route ------- -11/Scrapyard -10/Materials (discovered 4 exits: [*Mat x3] / [*Min]) -10/Mines -10/Exiles -9/Mines -8/Materials (discovered 3 exits: *Fac x2 / Gar) -8/Garrison (discovered 3 exits: *Mat x3) -8/Materials (discovered 3 exits: *Fac x2 / Gar) -8/Garrison -7/Factory -7/Garrison (discovered 3 exits: *Fac x3) -7/Factory (discovered 3 exits: Sto / *Low x2) -7/Lower Caves -7/Lower Caves -7/Zion -6/Proximity Caves -6/Factory -5/Factory (discovered 5 exits: Fac x4 / Gar) -5/Garrison (discovered 3 exits: *Fac x3) -5/Factory -5/Garrison -4/Factory -4/Waste -4/Factory (discovered 3 exits: *Res / Upp x2) -3/Research History --------- Turn | Location | Event 9 | -11/Scrapyard | Discovered new exit (range 15) 116 | -11/Scrapyard | Entered Materials 307 | -10/Materials | Build established: Mutant 683 | -10/Materials | Discovered new exit (range 16) 916 | -10/Materials | Derelicts attacked the area 1023 | -10/Materials | Discovered new exit (range 11) 1153 | -10/Materials | Lost 3 parts (1p1n1u) 1372 | -10/Materials | Discovered new exit (range 4) 1399 | -10/Materials | Build established: Scavenger-Mutant 1564 | -10/Materials | Discovered new exit (range 16) 1716 | -10/Materials | Entered Mines 1721 | -10/Mines | Met a Derelict bent on vengeance 1723 | -10/Mines | Received a Rocket Launcher from a helpful Derelict 1749 | -10/Mines | Assembled infested the area 1754 | -10/Mines | Assisted by a Guerilla fighting off Assembled 1813 | -10/Mines | Core integrity fell below 50% 1874 | -10/Mines | Learned location of Storage (-7) 1912 | -10/Mines | Lost 3 parts (1p1n1w) 1949 | -10/Mines | Core integrity fell below 20% 2045 | -10/Mines | Found a damaged Exp. Sensor Array with a note attached 2047 | -10/Mines | Found Prototype Device 2064 | -10/Mines | Learned Materials emergency access door positions 2104 | -10/Mines | Build established: Mutant 2140 | -10/Mines | Deemed a non-threat by the Exiles lab entrance 2140 | -10/Mines | Discovered new exit (range 5) 2147 | -10/Mines | Entered Exiles 2170 | -10/Exiles | Met 8R-AWN 2187 | -10/Exiles | Met EX-HEX 2236 | -10/Exiles | Met EX-DEC 2255 | -10/Exiles | Learned location of Zion (-7) 2316 | -10/Exiles | Met EX-BIN 2329 | -10/Exiles | Aligned with FarCom system 2330 | -10/Exiles | Given EX-Vault access code 2352 | -10/Exiles | Opened EX-Vault 2359 | -10/Exiles | Found Lightpack 2.0 2363 | -10/Exiles | Found Firepult 2370 | -10/Exiles | Found AWS/Gauss 2392 | -10/Exiles | Warned to stay clear of 0b10 Research branches 2461 | -10/Exiles | Discovered new exit (range 10) 2471 | -10/Exiles | Stole three prototypes: Lightpack 2.0, Firepult, AWS/Gauss 2471 | -10/Exiles | Entered Mines 2531 | -9/Mines | Found a hidden stash of uninstalled traps 2628 | -9/Mines | Discovered new exit (range 12) 2737 | -9/Mines | Entered Materials 2737 | -8/Materials | Evolved 4 slots: Utility x4 2910 | -8/Materials | Identified Exp. Sensor Array 3836 | -8/Materials | Discovered new exit (range 18) 4460 | -8/Materials | Discovered new exit (range 18) 4825 | -8/Materials | Identified exit to Garrison 4825 | -8/Materials | Entered Garrison 4883 | -8/Garrison | Triggered checkpoint 4925 | -8/Garrison | Garrison Relay disabled 4975 | -8/Garrison | Triggered checkpoint 5079 | -8/Garrison | Discovered new exit (range 11) 5118 | -8/Garrison | Garrison Relay disabled 5141 | -8/Garrison | Triggered checkpoint 5181 | -8/Garrison | Garrison Relay disabled 5315 | -8/Garrison | Triggered checkpoint 5445 | -8/Garrison | Discovered new exit (range 11) 5488 | -8/Garrison | Installed Relay Interface Framework 5507 | -8/Garrison | Triggered checkpoint 5607 | -8/Garrison | Triggered checkpoint 5622 | -8/Garrison | Garrison Relay disabled 5701 | -8/Garrison | Triggered checkpoint 5753 | -8/Garrison | Triggered checkpoint 6167 | -8/Garrison | Triggered checkpoint 6182 | -8/Garrison | Garrison Relay disabled 6259 | -8/Garrison | Discovered new exit (range 9) 6294 | -8/Garrison | Rescued a captive Derelict 6310 | -8/Garrison | Entered Materials 6310 | -8/Materials | Accompanied by 1 ally 6536 | -8/Materials | Core integrity fell below 50% 6710 | -8/Materials | First assault squad dispatched 6774 | -8/Materials | Discovered new exit (range 8) 7198 | -8/Materials | Discovered new exit (range 4) 7265 | -8/Materials | Identified exit to Garrison 7265 | -8/Materials | Entered Garrison 7391 | -8/Garrison | Triggered checkpoint 7399 | -8/Garrison | Garrison Relay disabled 7444 | -8/Garrison | Garrison Relay disabled 7485 | -8/Garrison | Expanded RIF knowledge: Structural Interface 7806 | -8/Garrison | Core integrity fell below 20% 7858 | -8/Garrison | Found Powered Armor 7860 | -8/Garrison | Found Powered Armor 7862 | -8/Garrison | Found Powered Armor 7865 | -8/Garrison | Found Powered Armor 7899 | -8/Garrison | Triggered checkpoint 7925 | -8/Garrison | Triggered checkpoint 7987 | -8/Garrison | AWS/Gauss suddenly broke down 8019 | -8/Garrison | Build established: Hauler-Mutant 8085 | -8/Garrison | Discovered new exit (range 12) 8089 | -8/Garrison | Triggered checkpoint 8214 | -8/Garrison | Entered Factory 8214 | -7/Factory | Accompanied by 2 allies 8214 | -7/Factory | Evolved 2 slots: Power x1, Utility x1 8216 | -7/Factory | FarCom data flow suspended 9276 | -7/Factory | Identified exit to Garrison 9276 | -7/Factory | Entered Garrison 9278 | -7/Garrison | Build established: Bothacker-Mutant 9316 | -7/Garrison | Triggered checkpoint 9383 | -7/Garrison | Garrison Relay disabled 9521 | -7/Garrison | Triggered checkpoint 9521 | -7/Garrison | Triggered checkpoint 9625 | -7/Garrison | Discovered new exit (range 10) 9644 | -7/Garrison | Garrison Relay disabled 9920 | -7/Garrison | Triggered checkpoint 10096 | -7/Garrison | Triggered checkpoint 10161 | -7/Garrison | Discovered new exit (range 11) 10194 | -7/Garrison | Triggered checkpoint 10200 | -7/Garrison | P-60 Hacker assimilated allied Guardian 4a 10266 | -7/Garrison | Garrison Relay disabled 10271 | -7/Garrison | Lost 3 parts (1p1u1w) 10368 | -7/Garrison | Triggered checkpoint 10418 | -7/Garrison | Expanded RIF knowledge: Autooverride 10442 | -7/Garrison | Triggered checkpoint 10480 | -7/Garrison | Discovered new exit (range 7) 10536 | -7/Garrison | Phase Generator disabled 10579 | -7/Garrison | Garrison Relay disabled 10614 | -7/Garrison | Entered Factory 11014 | -7/Factory | First assault squad dispatched 11127 | -7/Factory | Repaired Powered Armor 11148 | -7/Factory | Core integrity fell below 50% 11299 | -7/Factory | Identified exit to Storage 11299 | -7/Factory | Identified exit to Lower Caves 11437 | -7/Factory | Found Prototype Launcher 11438 | -7/Factory | Identified Rocket Array 11608 | -7/Factory | Entered Lower Caves 11696 | -7/Lower Caves | Identified exit to Lower Caves 12060 | -7/Lower Caves | System corruption reached 10% 12110 | -7/Lower Caves | Entered another Lower Caves area 12111 | -7/Lower Caves | Encountered a Warlord checkpoint 12161 | -7/Lower Caves | Spotted B-75 Beast 12282 | -7/Lower Caves | Discovered new exit (range 15) 12283 | -7/Lower Caves | Spotted UI-00G(f) 12283 | -7/Lower Caves | Spotted IY-X6K(f) 12284 | -7/Lower Caves | Spotted VZ-KQS(f) 12285 | -7/Lower Caves | Destroyed UI-00G(f) 12285 | -7/Lower Caves | Encountered a Master Thief 12286 | -7/Lower Caves | Spotted 60-M7M(f) 12286 | -7/Lower Caves | Lightpack 2.0 stolen by Master Thief 12287 | -7/Lower Caves | Encountered a Master Thief 12287 | -7/Lower Caves | Encountered a Master Thief 12302 | -7/Lower Caves | Exp. Sensor Array stolen by Master Thief 12313 | -7/Lower Caves | Destroyed VZ-KQS(f) 12409 | -7/Lower Caves | Identified exit to Zion 12419 | -7/Lower Caves | Entered Zion 12475 | -7/Zion | Given the Hacking Drone Bay 12477 | -7/Zion | Found Prototype Device 12513 | -7/Zion | Discovered new exit (range 7) 12574 | -7/Zion | Build established: Mutant 12582 | -7/Zion | Identified exit to Proximity Caves 12583 | -7/Zion | Entered Proximity Caves 12585 | -6/Proximity Caves | Spotter reported a threat 12586 | -6/Proximity Caves | Spotter reported a threat 12691 | -6/Proximity Caves | Spotter reported a threat 12738 | -6/Proximity Caves | System corruption reached 30% 12875 | -6/Proximity Caves | Discovered new exit (range 15) 12907 | -6/Proximity Caves | Entered Factory 12907 | -6/Factory | Evolved 2 slots: Propulsion x2 12976 | -6/Factory | Identified Hacking Drone Bay 13092 | -6/Factory | Spotted B-75 Beast 13202 | -6/Factory | Destroyed B-75 Beast 13223 | -6/Factory | Lost 7 parts (2p1n3u1w) 13492 | -6/Factory | Fabricated Shield Leg (x1) 13503 | -6/Factory | Build established: Scavenger-Mutant 13607 | -6/Factory | First assault squad dispatched 13849 | -6/Factory | Discovered new exit (range 13) 13878 | -6/Factory | Identified exit to Factory 13931 | -6/Factory | Entered another Factory area 13931 | -5/Factory | Evolved 2 slots: Propulsion x1, Weapon x1 13996 | -5/Factory | Spotted B-75 Beast 14387 | -5/Factory | Identified exit to Factory 14557 | -5/Factory | Garrison activated, responded to threat 14668 | -5/Factory | Identified exit to Garrison 14678 | -5/Factory | Entered Garrison 14678 | -5/Garrison | Accompanied by 1 ally 14762 | -5/Garrison | Triggered checkpoint 14774 | -5/Garrison | Garrison Relay disabled 14780 | -5/Garrison | Lost 4 parts (2p1u1w) 14815 | -5/Garrison | Expanded RIF knowledge: Program Shield 15039 | -5/Garrison | Spotted B-75 Beast 15043 | -5/Garrison | Triggered checkpoint 15064 | -5/Garrison | Allies destroyed B-75 Beast 15129 | -5/Garrison | Triggered checkpoint 15202 | -5/Garrison | Garrison Relay disabled 15369 | -5/Garrison | Garrison Relay disabled 15491 | -5/Garrison | Discovered new exit (range 14) 15944 | -5/Garrison | Triggered checkpoint 16168 | -5/Garrison | Build established: Scavenger-Tank 16239 | -5/Garrison | Discovered new exit (range 10) 16270 | -5/Garrison | Triggered checkpoint 16340 | -5/Garrison | Garrison Relay disabled 16507 | -5/Garrison | Spotted B-75 Beast 16517 | -5/Garrison | Allies destroyed B-75 Beast 16678 | -5/Garrison | Found Adv. Powered Armor 16681 | -5/Garrison | Found Adv. Powered Armor 16685 | -5/Garrison | Found Adv. Powered Armor 16688 | -5/Garrison | Found Adv. Powered Armor 16762 | -5/Garrison | Triggered checkpoint 17058 | -5/Garrison | Triggered checkpoint 17180 | -5/Garrison | Expanded RIF knowledge: Hotswap 17311 | -5/Garrison | Discovered new exit (range 11) 17338 | -5/Garrison | Entered Factory 17338 | -5/Factory | Accompanied by 2 allies 17697 | -5/Factory | Build established: Hauler-Tank 18238 | -5/Factory | First assault squad dispatched 18276 | -5/Factory | Identified exit to Garrison 18290 | -5/Factory | Entered Garrison 18347 | -5/Garrison | Spotted B-75 Beast 18476 | -5/Garrison | Triggered checkpoint 18517 | -5/Garrison | Destroyed B-75 Beast 18542 | -5/Garrison | Lost 5 parts (2u3w) 18543 | -5/Garrison | System corruption reached 10% 18607 | -5/Garrison | Lost 4 parts (1p1n2u) 18637 | -5/Garrison | Garrison Relay disabled 18673 | -5/Garrison | Expanded RIF knowledge: Patrol Navigation 18865 | -5/Garrison | Triggered checkpoint 18991 | -5/Garrison | Build established: Scavenger-Tank 19075 | -5/Garrison | Phase Generator disabled 19086 | -5/Garrison | Discovered exit to Factory (range 10) 19160 | -5/Garrison | Entered Factory 19160 | -4/Factory | Evolved 2 slots: Propulsion x1, Utility x1 19316 | -4/Factory | Fabricated G-67 Veteran (x3) 19375 | -4/Factory | Identified exit to Garrison 19861 | -4/Factory | Build established: Scavenger-Gunner 19943 | -4/Factory | Lost 3 parts (1p2n) 19953 | -4/Factory | Sucked down chute 19953 | -4/Factory | Entered Waste 19953 | -4/Waste | The area was eerily silent 20394 | -4/Waste | Discovered new exit (range 13) 20488 | -4/Waste | Entered Factory 20581 | -4/Factory | Identified exit to Upper Caves 20671 | -4/Factory | Fabricated Imp. Armor Integrity Analyzer (x2) 20789 | -4/Factory | Spotted B-86 Titan 20885 | -4/Factory | Discovered new exit (range 12) 20966 | -4/Factory | Destroyed 7 combat bots 21002 | -4/Factory | Lost 4 parts (2u2w) 21102 | -4/Factory | Destroyed 7 combat bots 21109 | -4/Factory | Entered Research 21109 | -3/Research | Evolved 2 slots: Power x1, Weapon x1 21123 | -3/Research | Garrison activated, responded to threat 21173 | -3/Research | Lost 3 parts (1p1n1w) 21327 | -3/Research | Build established: Scavenger-Mutant 21677 | -3/Research | System corruption reached 10% 21727 | -3/Research | Lost 4 parts (1p1n1u1w) 22021 | -3/Research | Lost 3 parts (1n1u1w) 22132 | -3/Research | Found Powered Armor 22303 | -3/Research | Lost 9 parts (1p5n1u2w) 22394 | -3/Research | Core integrity fell below 50% 22477 | -3/Research | Core integrity fell below 20% 22489 | -3/Research | Destroyed by S-43 Plague with Heavy Machine Gun Last Messages --------------- 22472_ Sneak attack on K-01 Serf. 22472_ K-01 Serf destroyed. 22473_ Imp. Antigrav System destroyed. 22474_ Mic. Antimatter Reactor destroyed. 22474_ P-80 Master suffers critical hit (Impale). 22475_ UWJRXU1&,EXHIOGK,YL%YLH|0I< &CLJCECTKI&I 22475_ Cld. Gravmag System destroyed. 22476_ Imp. Antigrav System destroyed. 22476_ Adv. Corruption Screen intercepted 1% system corruption. 22478_ Dropped Lrg. Storage Unit. 22478_ Penetrated by Slug. 22478_ Slammed into P-80 Master. 22479_ P-80 Master resets Y-72 Warden, system corruption cleaned. 22482_ Gyrokinetic Inverter destroyed. 22482_ Dropped Adv. Dynamic Insulation System. 22483_ Particle Synthesizer disabled. 22483_ Adv. Corruption Screen intercepted 1% system corruption. 22488_ Gyrokinetic Inverter destroyed. 22489_ U-05 Engineer destroyed. 22489_ K-01 Serf collects debris. Map ----- +----------------------------------------------------+ | ???????????????? ??# # /!!#????????????????? | | ?????????????#####+##### # ! ! #????????????????? | | ?????????????+ !%%/ = !! #????????????????? | | ?????????????##### ##### # #????????????????? | | ?????????????????# #???# # #????????????????? | | #######??????????# #???# # ! #????????????????? | | #??#???????# #???# ########????????????????? | | #??# ???#### #####/###?????????????????????? | | ] ""#??# #### ## #?????????????????????? | | ""#??# ## #?????????????????????? | | Y"#??# ## #?????????????????????? | | ""#??# */% #?????????????????????? | | !! ""#??# ##! #?????????????????????? | | ! #??# ## #?????????????????????? | | #### !## #?????????????????????? | | ### #### ## #?????????????????????? | | ????#??# """ ## #?????????????????????? | | ???????# """ / #?????????????????????? | | ???????# """ ## #?????????????????????? | | ???????# "" ## #?????????????????????? | | ???????# """ ## k #?????????????????????? | | ???????# ######/######+#####""?????????? | | ???????# sss ????????? | | ???????# s ????????? | | ???????# A ????????? | | ???????# k %@ """ """?????????? | | ???????######## ### ! """ ? ""??????????? | | ??????????????# #?#!!! """ ??????????????? | | ??????????????# #?#!!! """ ??????????????? | | ############### #?#!!! """???????????????? | | #?# ???????????????? | | #?# ?????????????? | | #?# ?????????????? | | ####################?#########+#+###?????????????? | | ?????????????????????????????????????????????????? | | ?????????????????????????????????????????????????? | | ?????????????????????????????????????????????????? | | ?????????????????????????????????????????????????? | | ?????????????????????????????????????????????????? | | ?????????????????????????????????????????????????? | | ?????????????????????????????????????????????????? | | ?????????????????????????????????????????????????? | | ?????????????????????????????????????????????????? | | ?????????????????????????????????????????????????? | | ?????????????????????????????????????????????????? | | ?????????????????????????????????????????????????? | | ?????????????????????????????????????????????????? | | ?????????????????????????????????????????????????? | | ?????????????????????????????????????????????????? | | ?????????????????????????????????????????????????? | +----------------------------------------------------+ Best States ------------- Heat Dissipation 132 Coolant Potential 100 Energy Generation 50 Energy Capacity 600 Matter Stores 300 Matter Capacity 300 Sight Range 18 Robot Scan Range 20 Terrain Scan Range 16 Terrain Scan Density 210 Additional Mass Support 9 Base Temperature (-) 100 EM Shielding 4 Corruption Block 20 Armor Coverage 800 Resistance: KI 30 Resistance: TH 15 Phase Shifting 10 Evasion (%) 55 Targeting Accuracy 16 Launcher Accuracy 40 Target Analysis 9 Core Analysis 6 Armor Integrity Analysis 40 Recoil Reduction 6 Kinecelleration 30 Offensive Hacking 10 Defensive Hacking 10 Relay Coupler Types 2 Relay Coupler Value 37 Trap Extractor Capacity 6 Item Schematics ----------------- None Robot Schematics ------------------ None Fabricated ------------ Shield Leg | x1 | -6/Factory | Preloaded G-67 Veteran | x3 | -4/Factory | Preloaded Imp. Armor Integrity Analyzer | x2 | -4/Factory | Preloaded Repaired ---------- Powered Armor | 8% | -7/Factory Studied --------- Wheel | -8/Materials | Hacked EM Pulse Cannon | -8/Materials | Hacked Lgt. Nuclear Core | -8/Materials | Hacked Arm. Huge Wheel | -7/Factory | Hacked Adv. Assault Cannon | -7/Factory | Hacked Mic. Nuclear Core | -7/Factory | Hacked Nuclear Core | -7/Factory | Hacked Gauss Cannon | -7/Factory | Hacked Remote Datajack | -6/Factory | Hacked Hvy. Assault Cannon | -6/Factory | Hacked Matter Neutralizer | -3/Research | Hacked Alien Tech Used ----------------- None Achievements -------------- Hack The Planet Hackerman Immobile And Lovin' It King Drone Challenges ------------ None Game ------ Seed QuantumGravitonProcessor Manual? 0 Play Time 02:51:10 Cumulative 433.2 hours Start 2025.10.27 @ 05:02:29 End 2025.10.27 @ 22:40:09 Sessions 2 Manual Loads 0 Difficulty Rogue Special Mode None Game No. 556 Rogue 556 Adventurer 0 Explorer 0 Win Type - Total 13 Types 6/0/2/2/1/0/2/0/0/0 Lore% 89 Gallery% 84 Achievement% 56 Wizard Run 0 Options --------- Layout 0 ASCII 0 Keyboard 0 Movement Mouse Keybinds 0 Fullscreen 1 Font 24/Terminus Map View 76x50 Zoom Use 0% Tactical HUD 1 Map Filters NONE Filters NONE Steam 1 RUN: bfcceb79-e7cc-48c6-b2a1-31582e6e6ffe